[Event "Titled Tuesday Blitz August 16 Early 2022"]
[White "Horak, Martin"]
[Black "Barria Zuniga, Daniel"]
[WhiteFideId "367095"]
[BlackFideId "3400816"]
[WhiteElo "1997"]
[BlackElo "2414"]
[Result "0-1"]
[Round "04"]
[TimeControl "180+2"]
[Date "2022.08.18"]
[WhiteClock "0:00:00"]
[BlackClock "0:00:00"]

1. e4 {[%clk 0:00:00]}  g6 {[%clk 0:00:00]} 2. d4 {[%clk 0:00:00]}  Bg7 {[%clk 0:00:00]} 3. Nc3 {[%clk 0:00:00]}  c5 {[%clk 0:00:00]} 4. dxc5 {[%clk 0:00:00]}  Bxc3+ {[%clk 0:00:00]} 5. bxc3 {[%clk 0:00:00]}  Nf6 {[%clk 0:00:00]} 6. f3 {[%clk 0:00:00]}  Qa5 {[%clk 0:00:00]} 7. Be3 {[%clk 0:00:00]}  Qxc3+ {[%clk 0:00:00]} 8. Kf2 {[%clk 0:00:00]}  Nc6 {[%clk 0:00:00]} 9. Rb1 {[%clk 0:00:00]}  b6 {[%clk 0:00:00]} 10. cxb6 {[%clk 0:00:00]}  axb6 {[%clk 0:00:00]} 11. Ne2 {[%clk 0:00:00]}  Qe5 {[%clk 0:00:00]} 12. Nd4 {[%clk 0:00:00]}  O-O {[%clk 0:00:00]} 13. Bc4 {[%clk 0:00:00]}  Na5 {[%clk 0:00:00]} 14. Rb5 {[%clk 0:00:00]}  Qc7 {[%clk 0:00:00]} 15. Bd3 {[%clk 0:00:00]}  Ba6 {[%clk 0:00:00]} 16. Rb1 {[%clk 0:00:00]}  Nc4 {[%clk 0:00:00]} 17. Bxc4 {[%clk 0:00:00]}  Bxc4 {[%clk 0:00:00]} 18. Qd2 {[%clk 0:00:00]}  Rxa2 {[%clk 0:00:00]} 19. Ra1 {[%clk 0:00:00]}  Rfa8 {[%clk 0:00:00]} 20. Rxa2 {[%clk 0:00:00]}  Rxa2 {[%clk 0:00:00]} 21. Qc3 {[%clk 0:00:00]}  Ra7 {[%clk 0:00:00]} 22. g3 {[%clk 0:00:00]}  d6 {[%clk 0:00:00]} 23. Ra1 {[%clk 0:00:00]}  Rxa1 {[%clk 0:00:00]} 24. Qxa1 {[%clk 0:00:00]}  e5 {[%clk 0:00:00]} 25. Qa8+ {[%clk 0:00:00]}  Kg7 {[%clk 0:00:00]} 26. Qc6 {[%clk 0:00:00]}  Qxc6 {[%clk 0:00:00]} 27. Nxc6 {[%clk 0:00:00]}  b5 {[%clk 0:00:00]} 28. Na5 {[%clk 0:00:00]}  Be6 {[%clk 0:00:00]} 29. Nb7 {[%clk 0:00:00]}  Ne8 {[%clk 0:00:00]} 30. Ba7 {[%clk 0:00:00]}  Kf8 {[%clk 0:00:00]} 31. Ke3 {[%clk 0:00:00]}  Ke7 {[%clk 0:00:00]} 32. Bb6 {[%clk 0:00:00]}  Kd7 {[%clk 0:00:00]} 33. Na5 {[%clk 0:00:00]}  f5 {[%clk 0:00:00]} 34. c3 {[%clk 0:00:00]}  Nf6 {[%clk 0:00:00]} 35. Kd3 {[%clk 0:00:00]}  fxe4+ {[%clk 0:00:00]} 36. fxe4 {[%clk 0:00:00]}  Ng4 {[%clk 0:00:00]} 37. h4 {[%clk 0:00:00]}  Nf6 {[%clk 0:00:00]} 38. Be3 {[%clk 0:00:00]}  Bh3 {[%clk 0:00:00]} 39. Bg5 {[%clk 0:00:00]}  Ng4 {[%clk 0:00:00]} 40. Nb3 {[%clk 0:00:00]}  Bf1+ {[%clk 0:00:00]} 41. Kd2 {[%clk 0:00:00]}  Bc4 {[%clk 0:00:00]} 42. Na1 {[%clk 0:00:00]}  h6 {[%clk 0:00:00]} 43. Be3 {[%clk 0:00:00]}  h5 {[%clk 0:00:00]} 44. Bg5 {[%clk 0:00:00]}  Ke6 {[%clk 0:00:00]} 45. Nc2 {[%clk 0:00:00]}  Nf6 {[%clk 0:00:00]} 46. Ke3 {[%clk 0:00:00]}  Nd7 {[%clk 0:00:00]} 47. Kd2 {[%clk 0:00:00]}  Nc5 {[%clk 0:00:00]} 48. Ke3 {[%clk 0:00:00]}  Ba2 {[%clk 0:00:00]} 49. Nb4 {[%clk 0:00:00]}  Bb1 {[%clk 0:00:00]} 50. Nd5 {[%clk 0:00:00]}  Kd7 {[%clk 0:00:00]} 51. Nf6+ {[%clk 0:00:00]}  Kc6 {[%clk 0:00:00]} 52. Kf3 {[%clk 0:00:00]}  Na4 {[%clk 0:00:00]} 53. Bd2 {[%clk 0:00:00]}  Nb2 {[%clk 0:00:00]} 54. Ke3 {[%clk 0:00:00]}  Nc4+ {[%clk 0:00:00]} 55. Ke2 {[%clk 0:00:00]}  Bc2 {[%clk 0:00:00]} 56. Bg5 {[%clk 0:00:00]}  Bb3 {[%clk 0:00:00]} 57. Kd3 {[%clk 0:00:00]}  Na3 {[%clk 0:00:00]} 58. Ke2 {[%clk 0:00:00]}  Bc4+ {[%clk 0:00:00]} 59. Ke3 {[%clk 0:00:00]}  Nb1 {[%clk 0:00:00]} 60. Bh6 {[%clk 0:00:00]}  Nxc3 {[%clk 0:00:00]} 61. Ne8 {[%clk 0:00:00]}  Kd7 {[%clk 0:00:00]} 62. Kd2 {[%clk 0:00:00]}  Kxe8 {[%clk 0:00:00]} 63. Kxc3 {[%clk 0:00:00]}  Kd7 {[%clk 0:00:00]} 64. Kb4 {[%clk 0:00:00]}  Kc6 {[%clk 0:00:00]} 65. Bg7 {[%clk 0:00:00]}  Bd3 {[%clk 0:00:00]} 66. Kc3 {[%clk 0:00:00]}  Bxe4 {[%clk 0:00:00]} 67. Bh8 {[%clk 0:00:00]}  Bf5 {[%clk 0:00:00]} 68. Bg7 {[%clk 0:00:00]}  Kd7 {[%clk 0:00:00]} 69. Kb4 {[%clk 0:00:00]}  Kc6 {[%clk 0:00:00]} 70. Kc3 {[%clk 0:00:00]}  Bg4 {[%clk 0:00:00]} 71. Bf8 {[%clk 0:00:00]}  Bh3 {[%clk 0:00:00]} 72. Bg7 {[%clk 0:00:00]}  Bf1 {[%clk 0:00:00]} 73. Kb4 {[%clk 0:00:00]}  Bc4 {[%clk 0:00:00]} 74. Kc3 {[%clk 0:00:00]}  Kd7 {[%clk 0:00:00]} 75. Kb4 {[%clk 0:00:00]}  Ke6 {[%clk 0:00:00]} 76. Kc3 {[%clk 0:00:00]}  d5 {[%clk 0:00:00]} 77. Kd2 {[%clk 0:00:00]}  d4 {[%clk 0:00:00]} 78. Kc2 {[%clk 0:00:00]}  Kd5 {[%clk 0:00:00]} 79. Kd2 {[%clk 0:00:00]}  e4 {[%clk 0:00:00]} 80. Kc2 {[%clk 0:00:00]}  e3 {[%clk 0:00:00]} 81. Kd1 {[%clk 0:00:00]}  Ke4 {[%clk 0:00:00]} 82. Ke1 {[%clk 0:00:00]}  d3 {[%clk 0:00:00]} 83. Kd1 {[%clk 0:00:00]}  d2 {[%clk 0:00:00]} 84. Bc3 {[%clk 0:00:00]}  Bb3+ {[%clk 0:00:00]} 85. Ke2 {[%clk 0:00:00]}  d1=Q# {[%clk 0:00:00]} 0-1


[Site "https://www.chess.com"]

[Event "Titled Tuesday Blitz August 16 Early 2022"]
[White "Iljin, Timofey"]
[Black "Grandelius, Nils"]
[WhiteFideId "14110180"]
[BlackFideId "1710400"]
[WhiteElo "2404"]
[BlackElo "2617"]
[Result "0-1"]
[Round "04"]
[TimeControl "180+1"]
[Date "2022.08.16"]
[WhiteClock "0:00:14"]
[BlackClock "0:00:11"]

1. d4 {[%clk 0:03:00]}  Nf6 {[%clk 0:02:57]} 2. c4 {[%clk 0:03:01]}  e6 {[%clk 0:02:57]} 3. Nc3 {[%clk 0:03:01]}  Bb4 {[%clk 0:02:57]} 4. e3 {[%clk 0:03:01]}  c5 {[%clk 0:02:53]} 5. a3 {[%clk 0:03:02]}  Bxc3+ {[%clk 0:02:50]} 6. bxc3 {[%clk 0:03:03]}  d6 {[%clk 0:02:49]} 7. Bd3 {[%clk 0:03:03]}  Nc6 {[%clk 0:02:45]} 8. Ne2 {[%clk 0:03:04]}  b6 {[%clk 0:02:45]} 9. O-O {[%clk 0:03:04]}  Na5 {[%clk 0:02:39]} 10. e4 {[%clk 0:03:04]}  Ba6 {[%clk 0:02:33]} 11. Bg5 {[%clk 0:03:03]}  h6 {[%clk 0:02:33]} 12. Bh4 {[%clk 0:03:03]}  g5 {[%clk 0:02:33]} 13. Bg3 {[%clk 0:03:03]}  Nh5 {[%clk 0:02:32]} 14. f4 {[%clk 0:03:03]}  Qd7 {[%clk 0:02:11]} 15. f5 {[%clk 0:02:50]}  O-O-O {[%clk 0:02:04]} 16. a4 {[%clk 0:02:45]}  Rhe8 {[%clk 0:01:55]} 17. Rb1 {[%clk 0:02:27]}  exf5 {[%clk 0:01:41]} 18. Rxf5 {[%clk 0:02:25]}  Bxc4 {[%clk 0:01:39]} 19. Bxc4 {[%clk 0:02:19]}  Nxc4 {[%clk 0:01:40]} 20. Qd3 {[%clk 0:02:20]}  Qe6 {[%clk 0:01:24]} 21. a5 {[%clk 0:01:54]}  Qxe4 {[%clk 0:01:05]} 22. Qxc4 {[%clk 0:01:54]}  Qxb1+ {[%clk 0:00:56]} 23. Rf1 {[%clk 0:01:55]}  Qe4 {[%clk 0:00:53]} 24. axb6 {[%clk 0:01:17]}  axb6 {[%clk 0:00:48]} 25. Qa4 {[%clk 0:01:17]}  Kb7 {[%clk 0:00:41]} 26. Ra1 {[%clk 0:01:12]}  Qxe2 {[%clk 0:00:21]} 27. Qa7+ {[%clk 0:01:10]}  Kc6 {[%clk 0:00:21]} 28. Qxf7 {[%clk 0:01:00]}  Nxg3 {[%clk 0:00:18]} 29. d5+ {[%clk 0:00:58]}  Kb5 {[%clk 0:00:18]} 30. Rb1+ {[%clk 0:00:58]}  Kc4 {[%clk 0:00:18]} 31. hxg3 {[%clk 0:00:57]}  Qd2 {[%clk 0:00:13]} 32. Rxb6 {[%clk 0:00:48]}  Re1+ {[%clk 0:00:14]} 33. Kh2 {[%clk 0:00:48]}  Qc1 {[%clk 0:00:11]} 34. Kh3 {[%clk 0:00:36]}  h5 {[%clk 0:00:11]} 35. g4 {[%clk 0:00:15]}  Rh1+ {[%clk 0:00:10]} 36. Kg3 {[%clk 0:00:16]}  Qe3+ {[%clk 0:00:10]} 37. Qf3 {[%clk 0:00:14]}  h4# {[%clk 0:00:11]} 0-1


[Site "https://www.chess.com"]

[Event "Titled Tuesday Blitz August 16 Early 2022"]
[White "Jaferian, Koosha"]
[Black "Martinez, Shawn"]
[WhiteFideId "12507440"]
[BlackFideId "2039770"]
[WhiteElo "2030"]
[BlackElo "2174"]
[Result "0-1"]
[Round "04"]
[TimeControl "180+2"]
[Date "2022.08.18"]
[WhiteClock "0:00:00"]
[BlackClock "0:00:00"]

1. Nf3 {[%clk 0:00:00]}  g6 {[%clk 0:00:00]} 2. d4 {[%clk 0:00:00]}  Bg7 {[%clk 0:00:00]} 3. b3 {[%clk 0:00:00]}  b6 {[%clk 0:00:00]} 4. Bb2 {[%clk 0:00:00]}  Bb7 {[%clk 0:00:00]} 5. e3 {[%clk 0:00:00]}  a6 {[%clk 0:00:00]} 6. Be2 {[%clk 0:00:00]}  h6 {[%clk 0:00:00]} 7. O-O {[%clk 0:00:00]}  d6 {[%clk 0:00:00]} 8. Nbd2 {[%clk 0:00:00]}  Nd7 {[%clk 0:00:00]} 9. c4 {[%clk 0:00:00]}  e6 {[%clk 0:00:00]} 10. Rc1 {[%clk 0:00:00]}  Ne7 {[%clk 0:00:00]} 11. Ne1 {[%clk 0:00:00]}  O-O {[%clk 0:00:00]} 12. Bf3 {[%clk 0:00:00]}  Qc8 {[%clk 0:00:00]} 13. Nd3 {[%clk 0:00:00]}  c5 {[%clk 0:00:00]} 14. Nf4 {[%clk 0:00:00]}  e5 {[%clk 0:00:00]} 15. dxe5 {[%clk 0:00:00]}  dxe5 {[%clk 0:00:00]} 16. Bxb7 {[%clk 0:00:00]}  Qxb7 {[%clk 0:00:00]} 17. Ne2 {[%clk 0:00:00]}  Rad8 {[%clk 0:00:00]} 18. Qc2 {[%clk 0:00:00]}  Nf6 {[%clk 0:00:00]} 19. Bxe5 {[%clk 0:00:00]}  Nc6 {[%clk 0:00:00]} 20. Bxf6 {[%clk 0:00:00]}  Bxf6 {[%clk 0:00:00]} 21. Nf3 {[%clk 0:00:00]}  Nb4 {[%clk 0:00:00]} 22. Qb1 {[%clk 0:00:00]}  Nd3 {[%clk 0:00:00]} 23. Rcd1 {[%clk 0:00:00]}  Nb2 {[%clk 0:00:00]} 24. Rxd8 {[%clk 0:00:00]}  Rxd8 {[%clk 0:00:00]} 25. Nf4 {[%clk 0:00:00]}  b5 {[%clk 0:00:00]} 26. Nd5 {[%clk 0:00:00]}  Bg7 {[%clk 0:00:00]} 27. Qe4 {[%clk 0:00:00]}  Kh8 {[%clk 0:00:00]} 28. Rb1 {[%clk 0:00:00]}  bxc4 {[%clk 0:00:00]} 29. bxc4 {[%clk 0:00:00]}  Qd7 {[%clk 0:00:00]} 30. Ne5 {[%clk 0:00:00]}  Qe6 {[%clk 0:00:00]} 31. f4 {[%clk 0:00:00]}  Nxc4 {[%clk 0:00:00]} 32. Qxc4 {[%clk 0:00:00]}  Rxd5 {[%clk 0:00:00]} 33. Nd3 {[%clk 0:00:00]}  Qxe3+ {[%clk 0:00:00]} 34. Nf2 {[%clk 0:00:00]}  Rd2 {[%clk 0:00:00]} 35. Rf1 {[%clk 0:00:00]}  Bd4 {[%clk 0:00:00]} 36. Qxf7 {[%clk 0:00:00]}  Qxf2+ {[%clk 0:00:00]} 37. Rxf2 {[%clk 0:00:00]}  Rd1# {[%clk 0:00:00]} 0-1


[Site "https://www.chess.com"]

[Event "Titled Tuesday Blitz August 16 Early 2022"]
[White "Jain, Naveen"]
[Black "Ponce Cano, Adrian"]
[WhiteFideId "5003970"]
[BlackFideId "22296913"]
[WhiteElo "2036"]
[BlackElo "2261"]
[Result "0-1"]
[Round "04"]
[TimeControl "180+2"]
[Date "2022.08.18"]
[WhiteClock "0:00:00"]
[BlackClock "0:00:00"]

1. c4 {[%clk 0:00:00]}  f5 {[%clk 0:00:00]} 2. Nc3 {[%clk 0:00:00]}  Nf6 {[%clk 0:00:00]} 3. g3 {[%clk 0:00:00]}  g6 {[%clk 0:00:00]} 4. Bg2 {[%clk 0:00:00]}  Bg7 {[%clk 0:00:00]} 5. d3 {[%clk 0:00:00]}  O-O {[%clk 0:00:00]} 6. Nf3 {[%clk 0:00:00]}  d6 {[%clk 0:00:00]} 7. O-O {[%clk 0:00:00]}  e5 {[%clk 0:00:00]} 8. Bg5 {[%clk 0:00:00]}  h6 {[%clk 0:00:00]} 9. Bxf6 {[%clk 0:00:00]}  Bxf6 {[%clk 0:00:00]} 10. Nd5 {[%clk 0:00:00]}  Bg7 {[%clk 0:00:00]} 11. Rc1 {[%clk 0:00:00]}  c6 {[%clk 0:00:00]} 12. Nc3 {[%clk 0:00:00]}  Be6 {[%clk 0:00:00]} 13. b4 {[%clk 0:00:00]}  Nd7 {[%clk 0:00:00]} 14. a4 {[%clk 0:00:00]}  a6 {[%clk 0:00:00]} 15. b5 {[%clk 0:00:00]}  d5 {[%clk 0:00:00]} 16. bxc6 {[%clk 0:00:00]}  bxc6 {[%clk 0:00:00]} 17. cxd5 {[%clk 0:00:00]}  cxd5 {[%clk 0:00:00]} 18. d4 {[%clk 0:00:00]}  e4 {[%clk 0:00:00]} 19. Ne1 {[%clk 0:00:00]}  Nb6 {[%clk 0:00:00]} 20. e3 {[%clk 0:00:00]}  Rc8 {[%clk 0:00:00]} 21. Qb3 {[%clk 0:00:00]}  Nc4 {[%clk 0:00:00]} 22. Nc2 {[%clk 0:00:00]}  Nd2 {[%clk 0:00:00]} 23. Qb2 {[%clk 0:00:00]}  Nxf1 {[%clk 0:00:00]} 24. Bxf1 {[%clk 0:00:00]}  Qa5 {[%clk 0:00:00]} 25. Na3 {[%clk 0:00:00]}  Rb8 {[%clk 0:00:00]} 26. Qa2 {[%clk 0:00:00]}  Rfc8 {[%clk 0:00:00]} 27. Nab1 {[%clk 0:00:00]}  Bf8 {[%clk 0:00:00]} 28. Rd1 {[%clk 0:00:00]}  Bb4 {[%clk 0:00:00]} 29. Ne2 {[%clk 0:00:00]}  Bd6 {[%clk 0:00:00]} 30. Nd2 {[%clk 0:00:00]}  Rc7 {[%clk 0:00:00]} 31. Rb1 {[%clk 0:00:00]}  Rbc8 {[%clk 0:00:00]} 32. Nb3 {[%clk 0:00:00]}  Qb4 {[%clk 0:00:00]} 33. Nc5 {[%clk 0:00:00]}  Bxc5 {[%clk 0:00:00]} 34. Rxb4 {[%clk 0:00:00]}  Bxb4 {[%clk 0:00:00]} 35. Nf4 {[%clk 0:00:00]}  Bf7 {[%clk 0:00:00]} 36. Bxa6 {[%clk 0:00:00]}  Rc1+ {[%clk 0:00:00]} 37. Kg2 {[%clk 0:00:00]}  R8c2 {[%clk 0:00:00]} 38. Qb3 {[%clk 0:00:00]}  Be1 {[%clk 0:00:00]} 39. Qb8+ {[%clk 0:00:00]}  Kh7 {[%clk 0:00:00]} 40. Qf8 {[%clk 0:00:00]}  Rxf2+ {[%clk 0:00:00]} 41. Kh3 {[%clk 0:00:00]}  Rc7 {[%clk 0:00:00]} 42. Qd6 {[%clk 0:00:00]}  g5 {[%clk 0:00:00]} 43. Ng2 {[%clk 0:00:00]}  g4+ {[%clk 0:00:00]} 44. Kh4 {[%clk 0:00:00]}  Rxg2 {[%clk 0:00:00]} 45. h3 {[%clk 0:00:00]}  Rh2 {[%clk 0:00:00]} 46. Bf1 {[%clk 0:00:00]}  Ba5 {[%clk 0:00:00]} 47. Qxh6+ {[%clk 0:00:00]}  Kxh6 {[%clk 0:00:00]} 48. Bg2 {[%clk 0:00:00]}  Rxg2 {[%clk 0:00:00]} 0-1


[Site "https://www.chess.com"]

[Event "Titled Tuesday Blitz August 16 Early 2022"]
[White "Janaszak, Dawid"]
[Black "Babazada, Khazar"]
[WhiteFideId "1119206"]
[BlackFideId "13413554"]
[WhiteElo "2165"]
[BlackElo "2409"]
[Result "1/2-1/2"]
[Round "04"]
[TimeControl "180+1"]
[Date "2022.08.16"]
[WhiteClock "0:00:44"]
[BlackClock "0:00:42"]

1. e4 {[%clk 0:03:00]}  Nf6 {[%clk 0:03:00]} 2. Nc3 {[%clk 0:02:58]}  d5 {[%clk 0:03:01]} 3. exd5 {[%clk 0:02:59]}  Nxd5 {[%clk 0:03:00]} 4. Bc4 {[%clk 0:02:59]}  c6 {[%clk 0:03:00]} 5. Qf3 {[%clk 0:02:55]}  e6 {[%clk 0:03:01]} 6. Nge2 {[%clk 0:02:52]}  Nd7 {[%clk 0:03:01]} 7. d4 {[%clk 0:02:49]}  Be7 {[%clk 0:03:02]} 8. Bd2 {[%clk 0:02:48]}  h5 {[%clk 0:03:02]} 9. O-O-O {[%clk 0:02:46]}  a5 {[%clk 0:02:59]} 10. a4 {[%clk 0:02:38]}  N7f6 {[%clk 0:02:27]} 11. Kb1 {[%clk 0:02:35]}  Bd7 {[%clk 0:02:24]} 12. Rhe1 {[%clk 0:02:26]}  b5 {[%clk 0:02:11]} 13. Bb3 {[%clk 0:02:22]}  b4 {[%clk 0:02:03]} 14. Ne4 {[%clk 0:02:20]}  Qb6 {[%clk 0:01:56]} 15. h4 {[%clk 0:01:57]}  O-O-O {[%clk 0:01:52]} 16. Ng5 {[%clk 0:01:51]}  Rhf8 {[%clk 0:01:47]} 17. Ng3 {[%clk 0:01:44]}  g6 {[%clk 0:01:44]} 18. Bc1 {[%clk 0:01:42]}  Kb7 {[%clk 0:01:41]} 19. N3e4 {[%clk 0:01:28]}  Rc8 {[%clk 0:01:40]} 20. Qg3 {[%clk 0:01:23]}  Qc7 {[%clk 0:01:38]} 21. Qxc7+ {[%clk 0:01:21]}  Kxc7 {[%clk 0:01:38]} 22. g3 {[%clk 0:01:20]}  Kb6 {[%clk 0:01:30]} 23. Nd2 {[%clk 0:01:18]}  Rc7 {[%clk 0:01:14]} 24. Nc4+ {[%clk 0:01:18]}  Ka6 {[%clk 0:01:13]} 25. Ne5 {[%clk 0:01:19]}  Be8 {[%clk 0:01:08]} 26. Bc4+ {[%clk 0:01:16]}  Ka7 {[%clk 0:01:08]} 27. Bb3 {[%clk 0:01:14]}  Ka6 {[%clk 0:01:07]} 28. Bc4+ {[%clk 0:01:14]}  Ka7 {[%clk 0:01:07]} 29. Bb3 {[%clk 0:01:14]}  Nd7 {[%clk 0:01:04]} 30. Nxg6 {[%clk 0:00:58]}  fxg6 {[%clk 0:00:51]} 31. Nxe6 {[%clk 0:00:58]}  Rb7 {[%clk 0:00:46]} 32. Nxf8 {[%clk 0:00:54]}  Nxf8 {[%clk 0:00:47]} 33. Bg5 {[%clk 0:00:49]}  Bxg5 {[%clk 0:00:42]} 34. Rxe8 {[%clk 0:00:44]}  Bh6 {[%clk 0:00:42]} 1/2-1/2


[Site "https://www.chess.com"]

[Event "Titled Tuesday Blitz August 16 Early 2022"]
[White "Kaasen, Tor Fredrik"]
[Black "Suder, Jakub"]
[WhiteFideId "1516647"]
[BlackFideId "1195310"]
[WhiteElo "2335"]
[BlackElo "2095"]
[Result "0-1"]
[Round "04"]
[TimeControl "180+1"]
[Date "2022.08.16"]
[WhiteClock "0:00:02"]
[BlackClock "0:00:13"]

1. e4 {[%clk 0:03:00]}  c5 {[%clk 0:02:59]} 2. Nf3 {[%clk 0:03:01]}  e6 {[%clk 0:02:59]} 3. d4 {[%clk 0:03:01]}  cxd4 {[%clk 0:02:59]} 4. Nxd4 {[%clk 0:03:02]}  Nc6 {[%clk 0:03:00]} 5. Nc3 {[%clk 0:03:02]}  Nf6 {[%clk 0:03:00]} 6. Ndb5 {[%clk 0:03:00]}  d6 {[%clk 0:03:00]} 7. Bf4 {[%clk 0:03:00]}  e5 {[%clk 0:03:00]} 8. Bg5 {[%clk 0:03:00]}  a6 {[%clk 0:03:01]} 9. Na3 {[%clk 0:03:01]}  Be6 {[%clk 0:03:01]} 10. Nc4 {[%clk 0:02:56]}  Rb8 {[%clk 0:03:01]} 11. Bxf6 {[%clk 0:02:53]}  Qxf6 {[%clk 0:02:59]} 12. Nb6 {[%clk 0:02:48]}  Nd4 {[%clk 0:02:38]} 13. Nbd5 {[%clk 0:02:31]}  Qd8 {[%clk 0:02:38]} 14. a4 {[%clk 0:02:31]}  Rc8 {[%clk 0:02:30]} 15. Bd3 {[%clk 0:02:19]}  Be7 {[%clk 0:02:29]} 16. Nxe7 {[%clk 0:02:18]}  Qxe7 {[%clk 0:02:28]} 17. O-O {[%clk 0:02:18]}  O-O {[%clk 0:02:27]} 18. a5 {[%clk 0:02:16]}  Kh8 {[%clk 0:02:24]} 19. Ne2 {[%clk 0:02:07]}  Nxe2+ {[%clk 0:02:23]} 20. Qxe2 {[%clk 0:02:07]}  Rc5 {[%clk 0:02:21]} 21. Rfd1 {[%clk 0:01:45]}  Qc7 {[%clk 0:02:21]} 22. Qd2 {[%clk 0:01:43]}  Rc8 {[%clk 0:02:15]} 23. h3 {[%clk 0:01:39]}  Kg8 {[%clk 0:02:14]} 24. Ra3 {[%clk 0:01:36]}  h6 {[%clk 0:02:12]} 25. b4 {[%clk 0:01:32]}  Rc3 {[%clk 0:02:09]} 26. Rxc3 {[%clk 0:01:29]}  Qxc3 {[%clk 0:02:10]} 27. Qxc3 {[%clk 0:01:25]}  Rxc3 {[%clk 0:02:10]} 28. Kf1 {[%clk 0:01:14]}  Kf8 {[%clk 0:02:07]} 29. Ke2 {[%clk 0:01:14]}  Ke7 {[%clk 0:02:02]} 30. Kd2 {[%clk 0:01:14]}  Ra3 {[%clk 0:01:58]} 31. Rb1 {[%clk 0:01:04]}  Kd7 {[%clk 0:01:56]} 32. b5 {[%clk 0:00:57]}  axb5 {[%clk 0:01:54]} 33. Rxb5 {[%clk 0:00:56]}  Kc7 {[%clk 0:01:55]} 34. h4 {[%clk 0:00:52]}  Bd7 {[%clk 0:01:54]} 35. Rb1 {[%clk 0:00:44]}  Rxa5 {[%clk 0:01:54]} 36. Bc4 {[%clk 0:00:45]}  f6 {[%clk 0:01:48]} 37. Rb3 {[%clk 0:00:42]}  Rc5 {[%clk 0:01:46]} 38. Bd5 {[%clk 0:00:41]}  Ba4 {[%clk 0:01:43]} 39. Rxb7+ {[%clk 0:00:33]}  Kc8 {[%clk 0:01:43]} 40. Rxg7 {[%clk 0:00:30]}  Rxc2+ {[%clk 0:01:40]} 41. Ke3 {[%clk 0:00:30]}  Rc3+ {[%clk 0:01:39]} 42. Ke2 {[%clk 0:00:31]}  Bb5+ {[%clk 0:01:27]} 43. Kd2 {[%clk 0:00:31]}  Rd3+ {[%clk 0:01:23]} 44. Kc2 {[%clk 0:00:31]}  Ra3 {[%clk 0:01:21]} 45. Rg6 {[%clk 0:00:24]}  h5 {[%clk 0:01:19]} 46. Rxf6 {[%clk 0:00:23]}  Kc7 {[%clk 0:01:20]} 47. Rf5 {[%clk 0:00:21]}  Be8 {[%clk 0:01:16]} 48. Rf8 {[%clk 0:00:20]}  Bc6 {[%clk 0:01:10]} 49. Bxc6 {[%clk 0:00:18]}  Kxc6 {[%clk 0:01:11]} 50. Rf5 {[%clk 0:00:18]}  Kc5 {[%clk 0:01:08]} 51. Kd2 {[%clk 0:00:17]}  Kd4 {[%clk 0:01:04]} 52. f3 {[%clk 0:00:16]}  Ra2+ {[%clk 0:01:04]} 53. Ke1 {[%clk 0:00:15]}  Ke3 {[%clk 0:00:56]} 54. Kd1 {[%clk 0:00:15]}  Rxg2 {[%clk 0:00:57]} 55. Rxh5 {[%clk 0:00:12]}  Rd2+ {[%clk 0:00:46]} 56. Ke1 {[%clk 0:00:11]}  Ra2 {[%clk 0:00:45]} 57. Kd1 {[%clk 0:00:10]}  Kxf3 {[%clk 0:00:45]} 58. Rh6 {[%clk 0:00:08]}  Ra6 {[%clk 0:00:44]} 59. h5 {[%clk 0:00:08]}  Kxe4 {[%clk 0:00:45]} 60. Rg6 {[%clk 0:00:08]}  Kd5 {[%clk 0:00:44]} 61. h6 {[%clk 0:00:08]}  Ra1+ {[%clk 0:00:44]} 62. Ke2 {[%clk 0:00:09]}  Rh1 {[%clk 0:00:45]} 63. Kf3 {[%clk 0:00:09]}  Kc5 {[%clk 0:00:35]} 64. Ke4 {[%clk 0:00:10]}  Rh4+ {[%clk 0:00:32]} 65. Kf5 {[%clk 0:00:10]}  e4 {[%clk 0:00:32]} 66. Re6 {[%clk 0:00:06]}  d5 {[%clk 0:00:29]} 67. Kg6 {[%clk 0:00:06]}  Kd4 {[%clk 0:00:27]} 68. h7 {[%clk 0:00:04]}  e3 {[%clk 0:00:26]} 69. Re8 {[%clk 0:00:04]}  Kd3 {[%clk 0:00:25]} 70. Re5 {[%clk 0:00:02]}  Rxh7 {[%clk 0:00:20]} 71. Rxd5+ {[%clk 0:00:02]}  Ke4 {[%clk 0:00:18]} 72. Rd8 {[%clk 0:00:02]}  Rh1 {[%clk 0:00:14]} 73. Kg5 {[%clk 0:00:01]}  Rf1 {[%clk 0:00:14]} 74. Re8+ {[%clk 0:00:01]}  Kd3 {[%clk 0:00:14]} 75. Kg4 {[%clk 0:00:02]}  e2 {[%clk 0:00:14]} 76. Rd8+ {[%clk 0:00:02]}  Kc4 {[%clk 0:00:13]} 0-1


[Site "https://www.chess.com"]